fUST/lending_fUST_20241028
["ID","MTS","AMOUNT","RATE_DAILY","PERIOD"]
[340905005,1730052652974,-725.174479,0.00027397,7]
[340905006,1730052652983,-500.0,0.00027397,30]
[340905007,1730052652994,-364.282999,0.00027397,7]
[340905008,1730052653004,-364.282999,0.00027397,7]
[340905009,1730052653013,-364.283007,0.00027397,7]
[340905010,1730052653024,-500.0,0.00027397,30]
[340905011,1730052653033,-665.0,0.00027397,30]
[340905012,1730052653043,-500.0,0.00027397,30]
[340905013,1730052653052,-24130.49,0.00027397,30]
[340905014,1730052653061,-704.24,0.00027397,30]
[340905015,1730052653071,-500.0,0.00027397,30]
[340905016,1730052653080,-600.93,0.00027397,30]
[340905017,1730052653090,-1250.78,0.00027397,30]
[340905018,1730052653102,-1246.63,0.00027397,30]
[340905019,1730052653112,-826.7,0.00027397,30]
[340905020,1730052653121,-500.0,0.00027397,30]
[340905021,1730052653131,-595.97,0.00027397,30]
[340905022,1730052653140,-1002.46,0.00027397,30]
[340905023,1730052653150,-997.05,0.00027397,30]
[340905024,1730052653159,-6538.4,0.00027397,21]
[340905025,1730052653168,-197.071348,0.00027397,7]
[340905026,1730052653178,-500.0,0.00027397,30]
[340905027,1730052653188,-197.071348,0.00027397,7]
[340905028,1730052653198,-197.071348,0.00027397,7]
[340905029,1730052653207,-587.09053829,0.00027397,30]
[340905030,1730052653216,-197.071348,0.00027397,7]
[340905031,1730052653226,-197.071348,0.00027397,7]
[340905032,1730052653236,-197.071342,0.00027397,7]
[340905033,1730052653245,-500.0,0.00027397,30]
[340905034,1730052653255,-821.77,0.00027397,30]
[340905035,1730052653264,-1121.08,0.00027397,30]
[340905036,1730052653273,-2469.6,0.00027397,30]
[340905037,1730052653283,-500.0,0.00027397,10]
[340905038,1730052653292,-639.4,0.00027397,30]
[340905039,1730052653302,-580.44,0.00027397,30]
[340905040,1730052653311,-500.0,0.00027397,30]
[340905041,1730052653321,-2087.420149,0.00027397,7]
[340905042,1730052653330,-548.91427563,0.00027397,30]
[340905043,1730052653339,-2087.420149,0.00027397,7]
[340905044,1730052653350,-2087.420149,0.00027397,7]
[340905045,1730052653360,-4685.62,0.00027397,30]
[340905046,1730052653369,-2087.420149,0.00027397,7]
[340905047,1730052653378,-1322.1,0.00027397,30]
[340905048,1730052653388,-2087.420149,0.00027397,7]
[340905049,1730052653397,-2087.420155,0.00027397,7]
[340905050,1730052653406,-500.0,0.00027397,30]
[340905051,1730052653415,-748.34,0.00027397,30]
[340905052,1730052653424,-317.12560361,0.00027397,30]
[340905053,1730052653434,-1302.46,0.00027397,30]
[340905054,1730052653443,-1329.93,0.00027397,30]
[340905055,1730052653454,-500.0,0.00027397,30]
[340905056,1730052653463,-1328.44,0.00027397,30]
[340905057,1730052653472,-500.0,0.00027397,30]
[340905058,1730052653482,-500.0,0.00027397,30]
[340905059,1730052653491,-500.0,0.00027397,30]
[340905060,1730052653500,-744.21,0.00027397,30]
[340905061,1730052653509,-1166.08,0.00027397,30]
[340905062,1730052653519,-500.0,0.00027397,30]
[340905063,1730052653528,-583.18,0.00027397,30]
[340905064,1730052653537,-500.0,0.00027397,30]
[340905065,1730052653547,-1475.42,0.00027397,30]
[340905066,1730052653556,-500.0,0.00027397,30]
[340905067,1730052653565,-500.0,0.00027397,30]
[340905068,1730052653575,-653.819004,0.00027397,7]
[340905069,1730052653584,-653.819004,0.00027397,7]
[340905070,1730052653595,-653.819004,0.00027397,7]
[340905071,1730052653605,-653.819004,0.00027397,7]
[340905072,1730052653614,-653.819004,0.00027397,7]
[340905073,1730052653623,-708.44,0.00027397,30]
[340905074,1730052653633,-653.818995,0.00027397,7]
[340905075,1730052653643,-500.0,0.00027397,30]
[340905076,1730052653652,-270.71469262,0.00027397,30]
[340905077,1730052653661,-1570.63,0.00027397,30]
[340905078,1730052653670,-2534.36,0.00027397,30]
[340905079,1730052653680,-500.0,0.00027397,30]
[340905080,1730052653689,-500.0,0.00027397,30]
[340905081,1730052653699,-570.34,0.00027397,30]
[340905082,1730052653708,-1378.93,0.00027397,30]
[340905083,1730052653881,-4195.63,0.00027397,30]
[340905084,1730052653892,-635.28,0.00027397,30]
[340905085,1730052653902,-500.0,0.00027397,30]
[340905086,1730052653912,-500.0,0.00027397,30]
[340905087,1730052653923,-500.0,0.00027397,30]
[340905088,1730052653933,-530.11,0.00027397,30]
[340905089,1730052653942,-587.41,0.00027397,30]
[340905090,1730052653955,-373.91386663,0.00027397,30]
[340905091,1730052653964,-500.0,0.00027397,30]
[340905092,1730052653973,-1781.92,0.00027397,30]
[340905093,1730052653983,-2148.91,0.00027397,30]
[340905094,1730052653992,-923.43,0.00027397,30]
[340905095,1730052654002,-2270.39,0.00027397,30]
[340905096,1730052654011,-500.0,0.00027397,30]
[340905097,1730052654020,-2363.25,0.00027397,30]
[340905098,1730052654029,-709.63,0.00027397,30]
[340905099,1730052654039,-3647.15,0.00027397,30]
[340905100,1730052654048,-500.0,0.00027397,30]
[340905101,1730052654057,-869.31,0.00027397,30]
[340905102,1730052654067,-500.0,0.00027397,30]
[340905103,1730052654077,-230.502505,0.00027397,7]
[340905104,1730052654088,-230.502505,0.00027397,7]
[340905105,1730052654102,-230.502505,0.00027397,7]
[340905106,1730052654113,-1608.78,0.00027397,30]
[340905107,1730052654124,-230.502505,0.00027397,7]
[340905108,1730052654136,-230.502505,0.00027397,7]
[340905109,1730052654146,-230.502496,0.00027397,7]
[340905110,1730052654156,-828.44,0.00027397,30]
[340905111,1730052654166,-638.84981711,0.00027397,30]
[340905112,1730052654177,-151.0,0.00027397,7]
[340905113,1730052654186,-7910.06,0.00027397,30]
[340905114,1730052654197,-151.0,0.00027397,7]
[340905115,1730052654206,-151.0,0.00027397,7]
[340905116,1730052654217,-500.0,0.00027397,2]
[340905117,1730052654227,-461.591865,0.00027397,7]
[340905118,1730052654238,-461.591865,0.00027397,7]
[340905119,1730052654249,-1709.04,0.00027397,30]
[340905120,1730052654258,-461.591865,0.00027397,7]
[340905121,1730052654270,-500.0,0.00027397,30]
[340905122,1730052654280,-461.59186,0.00027397,7]
[340905123,1730052654290,-1200.77,0.00027397,30]
[340905124,1730052654300,-170.97906476,0.00027397,2]
[340905125,1730052654310,-150.112233,0.000274,9]
[340905126,1730052654320,-150.112233,0.000274,9]
[340905127,1730052654331,-150.112235,0.000274,7]
[340905128,1730052654340,-3000.0,0.000274,2]
[340905129,1730052654355,-150.112233,0.000274,8]
[340905130,1730052654365,-150.112238,0.000274,7]
[340905131,1730052654376,-3000.0,0.0002741,2]
[340905132,1730052654386,-3000.0,0.0002742,2]
[340905133,1730052654397,-3000.0,0.0002743,2]
[340905134,1730052654407,-3000.0,0.0002744,2]
[340905135,1730052654417,-3000.0,0.0002745,2]
[340905136,1730052654428,-151.0,0.00027453,3]
[340905137,1730052654438,-196.064,0.00027459,2]
[340905138,1730052654448,-528.0,0.00027459,2]
[340905139,1730052654457,-1148.0,0.00027459,2]
[340905140,1730052654467,-2396.0,0.00027459,2]
[340905141,1730052654479,-3000.0,0.0002746,2]
[340905142,1730052654489,-3000.0,0.0002747,2]
[340905143,1730052654499,-3000.0,0.0002748,2]
[340905144,1730052654510,-500.0,0.00027483,2]
[340905145,1730052654520,-152.967,0.00027483,2]
[340905146,1730052654530,-3200.0,0.00027483,2]
[340905147,1730052654539,-3000.0,0.0002749,2]
[340905148,1730052654550,-3000.0,0.000275,2]
[340905149,1730052654561,-3000.0,0.0002751,2]
[340905150,1730052654572,-200.0,0.0002752,18]
[340905151,1730052654582,-3000.0,0.0002752,2]
[340905152,1730052654591,-276.038,0.0002753,2]
[340905153,1730052654603,-3000.0,0.0002753,2]
[340905154,1730052654613,-3000.0,0.0002754,2]
[340905155,1730052654623,-3000.0,0.0002755,2]
[340905156,1730052654633,-3000.0,0.0002756,2]
[340905157,1730052654644,-552.57998801,0.00027561,2]
[340905158,1730052654653,-3000.0,0.0002757,2]
[340905159,1730052654663,-3000.0,0.0002758,2]
[340905160,1730052654673,-3000.0,0.0002759,2]
[340905161,1730052654684,-184.0,0.000276,2]
[340905162,1730052654694,-500.0,0.000276,2]
[340905163,1730052654705,-513.0,0.000276,2]
[340905164,1730052654716,-186.0,0.000276,2]
[340905165,1730052654727,-3000.0,0.000276,2]
[340905166,1730052654737,-3000.0,0.0002761,2]
[340905167,1730052654747,-3000.0,0.0002762,2]
[340905168,1730052654757,-3000.0,0.0002763,2]
[340905169,1730052654767,-3000.0,0.0002764,2]
[340905170,1730052654778,-3000.0,0.0002765,2]
[340905171,1730052654788,-258.394235,0.00027651,7]
[340905172,1730052654798,-258.394235,0.00027651,7]
[340905173,1730052654809,-3000.0,0.0002766,2]
[340905174,1730052654820,-151.0,0.00027661,7]
[340905175,1730052654831,-151.0,0.00027661,7]
[340905176,1730052654841,-258.394235,0.00027661,7]
[340905177,1730052654852,-3000.0,0.0002767,2]
[340905178,1730052654862,-151.0,0.00027671,7]
[340905179,1730052654871,-151.0,0.00027671,7]
[340905180,1730052654882,-151.0,0.00027671,7]
[340905181,1730052654892,-151.0,0.00027671,7]
[340905182,1730052654902,-151.0,0.00027671,7]
[340905183,1730052654911,-151.0,0.00027671,7]
[340905184,1730052654923,-611.22,0.00027671,30]
[340905185,1730052654934,-623.77,0.00027671,30]
[340905186,1730052654946,-670.37,0.00027671,30]
[340905187,1730052654961,-500.0,0.00027671,30]
[340905188,1730052654971,-500.0,0.00027671,30]
[340905189,1730052654982,-623.95,0.00027671,30]
[340905190,1730052654994,-500.0,0.00027671,30]
[340905191,1730052655004,-500.0,0.00027671,30]
[340905192,1730052655014,-500.0,0.00027671,30]
[340905193,1730052655026,-500.0,0.00027671,30]
[340905194,1730052655037,-648.77,0.00027671,30]
[340905195,1730052655046,-500.0,0.00027671,30]
[340905196,1730052655056,-364.73885923,0.00027671,30]
[340905197,1730052655066,-705.37,0.00027671,30]
[340905198,1730052655076,-500.0,0.00027671,30]
[340905199,1730052655087,-500.0,0.00027671,30]
[340905200,1730052655099,-1689.96,0.00027671,30]
[340905201,1730052655109,-500.0,0.00027671,30]
[340905202,1730052655119,-500.0,0.00027671,30]
[340905203,1730052655129,-500.0,0.00027671,30]
[340905204,1730052655140,-579.35,0.00027671,30]
[340905205,1730052655151,-500.0,0.00027671,30]
[340905206,1730052655161,-500.0,0.00027671,30]
[340905207,1730052655171,-1205.97,0.00027671,30]
[340905208,1730052655181,-956.96,0.00027671,30]
[340905209,1730052655190,-761.31,0.00027671,30]
[340905210,1730052655200,-167.06636152,0.00027671,30]
[340905211,1730052655210,-500.0,0.00027671,30]
[340905212,1730052655220,-500.0,0.00027671,30]
[340905213,1730052655230,-847.5,0.00027671,30]
[340905214,1730052655241,-500.0,0.00027671,30]
[340905215,1730052655250,-916.74,0.00027671,30]
[340905216,1730052655260,-500.0,0.00027671,30]
[340905217,1730052655270,-500.0,0.00027671,30]
[340905218,1730052655280,-500.0,0.00027671,30]
[340905219,1730052655290,-927.97,0.00027671,30]
[340905220,1730052655299,-695.88,0.00027671,30]
[340905221,1730052655309,-500.0,0.00027671,30]
[340905222,1730052655318,-737.63,0.00027671,14]
[340905223,1730052655328,-500.0,0.00027671,7]
[340905224,1730052655337,-1080.86,0.00027671,30]
[340905225,1730052655350,-500.0,0.00027671,30]
[340905226,1730052655360,-500.0,0.00027671,30]
[340905227,1730052655370,-1572.45,0.00027671,30]
[340905228,1730052655379,-593.35,0.00027671,30]
[340905229,1730052655389,-1186.39,0.00027671,30]
[340905230,1730052655399,-200.0,0.00027671,7]
[340905231,1730052655409,-500.0,0.00027671,30]
[340905232,1730052655419,-500.0,0.00027671,30]
[340905233,1730052655429,-667.6,0.00027671,30]
[340905234,1730052655439,-1344.48,0.00027671,30]
[340905235,1730052655448,-534.55,0.00027671,30]
[340905236,1730052655458,-482.2410656,0.00027671,30]
[340905237,1730052655468,-711.83,0.00027671,30]
[340905238,1730052655478,-1123.52,0.00027671,30]
[340905239,1730052655487,-500.0,0.00027671,30]
[340905240,1730052655497,-500.0,0.00027671,30]
[340905241,1730052655507,-585.88,0.00027671,30]
[340905242,1730052655517,-1795.91,0.00027671,30]
[340905243,1730052655526,-965.34,0.00027671,30]
[340905244,1730052655536,-804.11,0.00027671,30]
[340905245,1730052655547,-151.0,0.00027671,30]
[340905246,1730052655557,-500.0,0.00027671,30]
[340905247,1730052655567,-2249.72,0.00027671,30]
[340905248,1730052655576,-1120.21,0.00027671,30]
[340905249,1730052655586,-1030.92,0.00027671,30]
[340905250,1730052655599,-1956.25,0.00027671,30]
[340905251,1730052655608,-669.33,0.00027671,30]
[340905252,1730052655618,-500.0,0.00027671,30]
[340905253,1730052655627,-530.87,0.00027671,30]
[340905254,1730052655637,-500.0,0.00027671,30]
[340905255,1730052655647,-1187.61,0.00027671,30]
[340905256,1730052655657,-851.31,0.00027671,30]
[340905257,1730052655667,-880.99,0.00027671,30]
[340905258,1730052655677,-500.0,0.00027671,30]
[340905259,1730052655688,-601.66,0.00027671,30]
[340905260,1730052655699,-1054.42,0.00027671,30]
[340905261,1730052655709,-520.32,0.00027671,30]
[340905262,1730052655719,-944.22,0.00027671,30]
[340905263,1730052655730,-602.53,0.00027671,30]
[340905264,1730052655740,-251.06547639,0.00027671,30]
[340905265,1730052655749,-500.0,0.00027671,30]
[340905266,1730052655758,-157.08395702,0.00027671,30]
[340905267,1730052655768,-745.74,0.00027671,30]
[340905268,1730052655778,-151.0,0.00027671,30]
[340905269,1730052655789,-500.0,0.00027671,30]
[340905270,1730052655799,-500.0,0.00027671,30]
[340905271,1730052655809,-500.0,0.00027671,30]
[340905272,1730052655819,-500.0,0.00027671,30]
[340905273,1730052655828,-566.63,0.00027671,30]
[340905274,1730052655838,-500.0,0.00027671,30]
[340905275,1730052655848,-578.52,0.00027671,30]
[340905276,1730052655858,-706.61,0.00027671,30]
[340905277,1730052655868,-500.0,0.00027671,30]
[340905278,1730052655877,-748.42,0.00027671,30]
[340905279,1730052655886,-758.02,0.00027671,30]
[340905280,1730052655896,-687.76,0.00027671,30]
[340905281,1730052655905,-500.0,0.00027671,30]
[340905282,1730052655915,-782.97,0.00027671,30]
[340905283,1730052655925,-500.0,0.00027671,30]
[340905284,1730052655934,-514.42,0.00027671,30]
[340905285,1730052655943,-500.0,0.00027671,30]
[340905286,1730052655957,-1298.65,0.00027671,7]
[340905287,1730052655967,-500.0,0.00027671,30]
[340905288,1730052655977,-738.69,0.00027671,30]
[340905289,1730052655986,-811.57,0.00027671,30]
[340905290,1730052655998,-605.53,0.00027671,30]
[340905291,1730052656007,-601.41,0.00027671,30]
[340905292,1730052656017,-1026.82,0.00027671,30]
[340905293,1730052656027,-500.0,0.00027671,30]
[340905294,1730052656036,-500.0,0.00027671,30]
[340905295,1730052656046,-500.0,0.00027671,30]
[340905296,1730052656055,-561.48,0.00027671,30]
[340905297,1730052656065,-500.0,0.00027671,30]
[340905298,1730052656075,-680.1,0.00027671,30]
[340905299,1730052656084,-500.0,0.00027671,30]
[340905300,1730052656094,-508.23,0.00027671,30]
[340905301,1730052656105,-1439.43,0.00027671,30]
[340905302,1730052656115,-1869.08,0.00027671,30]
[340905303,1730052656125,-1394.27,0.00027671,30]
[340905304,1730052656135,-500.0,0.00027671,30]
[340905305,1730052656145,-151.0,0.00027671,3]
[340905306,1730052656155,-1281.63,0.00027671,30]
[340905307,1730052656164,-606.38,0.00027671,30]
[340905308,1730052656174,-500.0,0.00027671,30]
[340905309,1730052656183,-809.96,0.00027671,30]
[340905310,1730052656193,-500.0,0.00027671,30]
[340905311,1730052656203,-500.0,0.00027671,30]
[340905312,1730052656213,-960.04,0.00027671,30]
[340905313,1730052656223,-151.0,0.00027671,2]
[340905314,1730052656233,-1303.52,0.00027671,30]
[340905315,1730052656243,-500.0,0.00027671,30]
[340905316,1730052656253,-199.45749061,0.00027671,30]
[340905317,1730052656263,-152.75641748,0.00027671,30]
[340905318,1730052656272,-156.91856716,0.00027671,30]
[340905319,1730052656281,-500.0,0.00027671,30]
[340905320,1730052656291,-500.0,0.00027671,30]
[340905321,1730052656301,-702.08,0.00027671,30]
[340905322,1730052656311,-598.09,0.00027671,30]
[340905323,1730052656320,-591.84,0.00027671,30]
[340905324,1730052656329,-2023.25,0.00027671,30]
[340905325,1730052656339,-656.65,0.00027671,30]
[340905326,1730052656349,-500.52,0.00027671,30]
[340905327,1730052656359,-741.32,0.00027671,30]
[340905328,1730052656368,-882.46,0.00027671,30]
[340905329,1730052656413,-773.04,0.00027671,30]
[340905330,1730052656423,-690.1,0.00027671,30]
[340905331,1730052656434,-973.26,0.00027671,30]
[340905332,1730052656446,-595.88,0.00027671,30]
[340905333,1730052656457,-832.68,0.00027671,30]
[340905334,1730052656466,-500.0,0.00027671,30]
[340905335,1730052656478,-504.28931252,0.00027671,30]
[340905336,1730052656488,-665.0,0.00027671,30]
[340905337,1730052656498,-500.0,0.00027671,30]
[340905338,1730052656510,-24130.49,0.00027671,30]
[340905339,1730052656520,-704.24,0.00027671,30]
[340905340,1730052656530,-500.0,0.00027671,30]
[340905341,1730052656541,-600.93,0.00027671,30]
[340905342,1730052656551,-1250.78,0.00027671,30]
[340905343,1730052656561,-1246.63,0.00027671,30]
[340905344,1730052656570,-826.7,0.00027671,30]
[340905345,1730052656579,-500.0,0.00027671,30]
[340905346,1730052656590,-595.97,0.00027671,30]
[340905347,1730052656601,-1002.46,0.00027671,30]
[340905348,1730052656615,-997.05,0.00027671,30]
[340905349,1730052656624,-6538.4,0.00027671,21]
[340905350,1730052656632,-500.0,0.00027671,30]
[340905351,1730052656641,-500.0,0.00027671,30]
[340905352,1730052656650,-821.77,0.00027671,30]
[340905353,1730052656659,-1121.08,0.00027671,30]
[340905354,1730052656668,-2469.6,0.00027671,30]
[340905355,1730052656678,-500.0,0.00027671,10]
[340905356,1730052656689,-639.4,0.00027671,30]
[340905357,1730052656699,-580.44,0.00027671,30]
[340905358,1730052656710,-500.0,0.00027671,30]
[340905359,1730052656719,-4685.62,0.00027671,30]
[340905360,1730052656729,-1322.1,0.00027671,30]
[340905361,1730052656739,-748.34,0.00027671,30]
[340905362,1730052656748,-1302.46,0.00027671,30]
[340905363,1730052656759,-1329.93,0.00027671,30]
[340905364,1730052656771,-500.0,0.00027671,30]
[340905365,1730052656780,-1328.44,0.00027671,30]
[340905366,1730052656789,-500.0,0.00027671,30]
[340905367,1730052656798,-744.21,0.00027671,30]
[340905368,1730052656809,-1166.08,0.00027671,30]
[340905369,1730052656819,-500.0,0.00027671,30]
[340905370,1730052656829,-583.18,0.00027671,30]
[340905371,1730052656839,-500.0,0.00027671,30]
[340905372,1730052656849,-1475.42,0.00027671,30]
[340905373,1730052656859,-500.0,0.00027671,30]
[340905374,1730052656869,-500.0,0.00027671,30]
[340905375,1730052656878,-708.44,0.00027671,30]
[340905376,1730052656888,-1570.63,0.00027671,30]
[340905377,1730052656899,-2534.36,0.00027671,30]
[340905378,1730052656909,-500.0,0.00027671,30]
[340905379,1730052656919,-570.34,0.00027671,30]
[340905380,1730052656929,-1378.93,0.00027671,30]
[340905381,1730052656938,-4195.63,0.00027671,30]
[340905382,1730052656949,-635.28,0.00027671,30]
[340905383,1730052656963,-500.0,0.00027671,30]
[340905384,1730052656974,-443.07805263,0.00027671,30]
[340905385,1730052656983,-500.0,0.00027671,30]
[340905386,1730052656996,-530.11,0.00027671,30]
[340905387,1730052657006,-587.41,0.00027671,30]
[340905388,1730052657015,-500.0,0.00027671,30]
[340905389,1730052657026,-1781.92,0.00027671,30]
[340905390,1730052657037,-2148.91,0.00027671,30]
[340905391,1730052657048,-923.43,0.00027671,30]
[340905392,1730052657059,-2270.39,0.00027671,30]
[340905393,1730052657069,-709.63,0.00027671,30]
[340905394,1730052657079,-2363.25,0.00027671,30]
[340905395,1730052657088,-3647.15,0.00027671,30]
[340905396,1730052657099,-434.96626058,0.00027671,30]
[340905400,1730053221909,180.887671,0.00013973,2]
[340905408,1730053720558,1042.23396749,0.0002,120]
[340905409,1730053724232,325.67483655,0.00022,120]
[340905410,1730053746148,167.082146,0.00013973,2]
[340905411,1730053783221,273.37336231,0.0002002,2]
[340905412,1730053798369,273.37336231,0.0002002,2]
[340905413,1730053813541,273.37336231,0.0002002,2]
[340905414,1730053828647,273.37336231,0.0002002,2]
[340905450,1730053832293,-454.58182109,0.00021627,4]
[340905452,1730053832303,-134.48489304,0.00021844,4]
[340905455,1730053832315,-320.09692805,0.00021844,4]
[340905457,1730053832325,-151.72230327,0.00021956,2]
[340905459,1730053832334,-606.10909479,0.0002206,6]
[340905461,1730053832344,-606.10909479,0.00022276,6]
[340905462,1730053832353,-38.34623566,0.00022492,6]
[340905482,1730053838494,-567.76285913,0.00022492,6]
[340905483,1730053838504,-50.68654748,0.00022709,6]
[340905484,1730053838848,-555.42254731,0.00022709,6]
[340905485,1730053838859,-606.10909479,0.00022925,6]
[340905486,1730053838868,-612.8414769,0.00023141,8]
[340905487,1730053838878,-300.0,0.00024999,2]
[340905488,1730053838887,-300.0,0.00024999,2]
[340905489,1730053838896,-220.19925273,0.00025,2]
[340905490,1730053838906,-4000.0,0.00025,4]
[340905491,1730053838915,-32067.24089097,0.00025,120]
[340905492,1730053838925,-175.755665,0.00025404,2]
[340905493,1730053838935,-500.0,0.00026,30]
[340905494,1730053838945,-500.0,0.00026,30]
[340905495,1730053838954,-500.0,0.00026,30]
[340905496,1730053838964,-500.0,0.00026,30]
[340905497,1730053838974,-500.0,0.00026,30]
[340905498,1730053838983,-500.0,0.00026,30]
[340905499,1730053838993,-500.0,0.00026,30]
[340905500,1730053839003,-500.0,0.00026,30]
[340905501,1730053839013,-500.0,0.00026,30]
[340905502,1730053839023,-500.0,0.00026,30]
[340905503,1730053839033,-500.0,0.00026,30]
[340905504,1730053839044,-500.0,0.00026,30]
[340905505,1730053839054,-500.0,0.00026,30]
[340905506,1730053839063,-600.0,0.00026,30]
[340905507,1730053839073,-600.0,0.00026,30]
[340905508,1730053839082,-600.0,0.00026,30]
[340905509,1730053839092,-600.0,0.00026,30]
[340905510,1730053839101,-600.0,0.00026,30]
[340905511,1730053839111,-600.0,0.00026,30]
[340905512,1730053839121,-500.0,0.00026,30]
[340905513,1730053839131,-600.0,0.00026,30]
[340905514,1730053839140,-500.0,0.00026,30]
[340905515,1730053839149,-600.0,0.00026,30]
[340905516,1730053839159,-500.0,0.00026,30]
[340905517,1730053839168,-900.0,0.00026,30]
[340905518,1730053839178,-500.0,0.00026,30]
[340905519,1730053839187,-500.0,0.00026,30]
[340905520,1730053839197,-526.0,0.00026736,2]
[340905521,1730053839207,-1148.0,0.00026736,2]
[340905522,1730053839216,-558.75884143,0.00027,4]
[340905523,1730053839225,-420.0,0.00027082,2]
[340905524,1730053839235,-410.03211059,0.00027373,2]
[340905525,1730053839244,-500.0,0.00027373,2]
[340905526,1730053839253,-500.0,0.00027373,2]
[340905527,1730053839263,-500.0,0.00027373,2]
[340905528,1730053839272,-580.61358792,0.00027376,2]
[340905529,1730053839281,-580.61358792,0.00027376,2]
[340905530,1730053839292,-580.61358792,0.00027376,2]
[340905531,1730053839303,-580.61358792,0.00027376,2]
[340905532,1730053839312,-580.61358792,0.00027376,2]
[340905533,1730053839322,-580.61358792,0.00027376,2]
[340905534,1730053839331,-580.61358792,0.00027376,2]
[340905535,1730053839341,-580.61358792,0.00027376,2]
[340905536,1730053839350,-580.61358792,0.00027376,2]
[340905537,1730053839360,-580.61358792,0.00027376,2]
[340905538,1730053839369,-580.61358792,0.00027376,2]
[340905539,1730053839378,-580.61358792,0.00027376,2]
[340905540,1730053839389,-580.61358792,0.00027376,2]
[340905541,1730053839398,-580.61358792,0.00027376,2]
[340905542,1730053839407,-580.61358792,0.00027376,2]
[340905543,1730053839417,-511.44849959,0.00027376,2]
[340905544,1730053839429,-69.16508833,0.00027376,2]
[340905545,1730053839439,-580.61358792,0.00027376,2]
[340905546,1730053839448,-235.46789516,0.00027376,2]
[340905558,1730053840429,-345.14569276,0.00027376,2]
[340905559,1730053840439,-580.61358792,0.00027376,2]
[340905560,1730053840449,-473.65071832,0.00027376,2]
[340905636,1730053844517,273.37336231,0.0002002,2]
[340905656,1730053859784,273.37336231,0.0002002,2]
[340905658,1730053868044,347.25942795,0.0002002,2]
[340905659,1730053876542,273.37336231,0.0002002,2]
[340905660,1730053884848,273.37336231,0.0002002,2]
[340905661,1730053893529,273.37336231,0.0002002,2]
[340905662,1730053901275,273.37336231,0.0002002,2]
[340905663,1730053910404,273.37336231,0.0002002,2]
[340905664,1730053919253,273.37336231,0.0002002,2]
[340905665,1730053927753,273.37336231,0.0002002,2]
[340905666,1730053936159,273.37336231,0.0002002,2]
[340905667,1730053944075,273.37336231,0.0002002,2]
[340905668,1730053951908,273.37336231,0.0002002,2]
[340905669,1730053959878,273.37336231,0.0002002,2]
[340905670,1730053967597,273.37336231,0.0002002,2]
[340905671,1730053975595,273.37336231,0.0002002,2]
[340905672,1730053983498,273.37336231,0.0002002,2]
[340905673,1730053991500,273.37336231,0.0002002,2]
[340905674,1730053999795,273.37336231,0.0002002,2]
[340905675,1730054009269,273.37336231,0.0002002,2]
[340905676,1730054017017,273.37336231,0.0002002,2]
[340905677,1730054025003,273.37336231,0.0002002,2]
[340905679,1730054032983,273.37336231,0.0002002,2]
[340905680,1730054041563,273.37336231,0.0002002,2]
[340905681,1730054049260,273.37336231,0.0002002,2]